fUST/lending_fUST_20250723
["ID","MTS","AMOUNT","RATE_DAILY","PERIOD"]
[374351001,1753278640831,-1545.58,0.00019178,2]
[374351002,1753278640840,-460.0,0.00019178,2]
[374351004,1753278640850,-295.66129166,0.00019178,2]
[374351006,1753278640859,-460.0,0.00019178,2]
[374351008,1753278640870,-460.0,0.00019178,2]
[374351011,1753278640879,-460.0,0.00019178,2]
[374351013,1753278640889,-561.41,0.00019178,2]
[374351015,1753278640899,-460.0,0.00019178,2]
[374351017,1753278640907,-136.57989314,0.00019178,2]
[374351021,1753278640944,-323.42010686,0.00019178,2]
[374351023,1753278640954,-460.0,0.00019178,2]
[374351025,1753278640962,-460.0,0.00019178,2]
[374351027,1753278640972,-240.664092,0.00019178,2]
[374351029,1753278640982,-1330.37690804,0.00019352,2]
[374351030,1753278640992,-4887.02646663,0.00019352,2]
[374351032,1753278641002,-539.79223249,0.00019444,2]
[374351034,1753278641012,-500.0,0.00019451,2]
[374351036,1753278641023,-184.54235767,0.00019451,2]
[374351038,1753278641034,-460.0,0.00019452,2]
[374351040,1753278641044,-7120.37782631,0.00019452,2]
[374351042,1753278641056,-406.26217369,0.00019452,2]
[374351044,1753278641065,-460.0,0.00019452,2]
[374351046,1753278641075,-171.37755409,0.00019452,2]
[374351049,1753278641085,-460.0,0.00019452,2]
[374351052,1753278641095,-460.0,0.00019452,2]
[374351055,1753278641105,-460.0,0.00019452,2]
[374351057,1753278641114,-1926.88,0.00019452,2]
[374351059,1753278641124,-460.0,0.00019452,2]
[374351061,1753278641133,-460.0,0.00019452,2]
[374351062,1753278641142,-460.0,0.00019452,2]
[374351064,1753278641152,-460.0,0.00019452,2]
[374351066,1753278641161,-460.0,0.00019452,2]
[374351068,1753278641170,-464.19900311,0.00019452,2]
[374351070,1753278641180,-460.0,0.00019452,2]
[374351072,1753278641189,-1268.06,0.00019452,2]
[374351074,1753278641199,-460.0,0.00019452,2]
[374351075,1753278641211,-460.0,0.00019452,2]
[374351077,1753278641221,-460.0,0.00019452,2]
[374351079,1753278641231,-460.0,0.00019452,2]
[374351081,1753278641241,-215.32126909,0.00019452,2]
[374351083,1753278641254,-406.28873091,0.00019452,2]
[374351085,1753278641264,-460.0,0.00019452,2]
[374351087,1753278641274,-460.0,0.00019452,2]
[374351089,1753278641283,-298.37455666,0.00019452,2]
[374351091,1753278641293,-460.0,0.00019452,2]
[374351093,1753278641303,-460.0,0.00019452,2]
[374351095,1753278641312,-480.34,0.00019452,2]
[374351097,1753278641321,-460.0,0.00019452,2]
[374351099,1753278641331,-460.0,0.00019452,2]
[374351101,1753278641342,-460.0,0.00019452,2]
[374351103,1753278641351,-460.0,0.00019452,2]
[374351105,1753278641361,-460.0,0.00019452,2]
[374351106,1753278641369,-460.0,0.00019452,2]
[374351108,1753278641379,-460.0,0.00019452,2]
[374351110,1753278641388,-460.0,0.00019452,2]
[374351112,1753278641397,-460.0,0.00019452,2]
[374351114,1753278641407,-460.0,0.00019452,2]
[374351116,1753278641417,-460.0,0.00019452,2]
[374351118,1753278641427,-460.0,0.00019452,2]
[374351120,1753278641437,-460.0,0.00019452,2]
[374351122,1753278641446,-549.96,0.00019452,2]
[374351124,1753278641460,-460.0,0.00019452,2]
[374351125,1753278641469,-460.0,0.00019452,2]
[374351127,1753278641478,-460.0,0.00019452,2]
[374351129,1753278641488,-460.0,0.00019452,2]
[374351131,1753278641497,-366.30638691,0.00019452,2]
[374351133,1753278641506,-410.73032552,0.00019452,2]
[374351135,1753278641519,-49.26967448,0.00019452,2]
[374351137,1753278641528,-460.0,0.00019452,2]
[374351139,1753278641539,-460.0,0.00019452,2]
[374351141,1753278641548,-460.0,0.00019452,2]
[374351143,1753278641557,-460.0,0.00019452,2]
[374351144,1753278641567,-460.0,0.00019452,2]
[374351146,1753278641576,-460.0,0.00019452,2]
[374351148,1753278641586,-460.0,0.00019452,2]
[374351150,1753278641595,-460.0,0.00019452,2]
[374351152,1753278641604,-460.0,0.00019452,2]
[374351157,1753278641645,-557.23032552,0.00019452,2]
[374351159,1753278641658,-23.14967448,0.00019452,2]
[374351161,1753278641667,-460.0,0.00019452,2]
[374351163,1753278641676,-92.85032552,0.00019452,2]
[374351165,1753278641689,-367.14967448,0.00019452,2]
[374351167,1753278641699,-460.0,0.00019452,2]
[374351169,1753278641713,-460.0,0.00019452,2]
[374351171,1753278641723,-447.04756775,0.00019452,2]
[374351173,1753278641733,-460.0,0.00019452,2]
[374351175,1753278641742,-460.0,0.00019452,2]
[374351177,1753278641752,-460.0,0.00019452,2]
[374351179,1753278641761,-460.0,0.00019452,2]
[374351181,1753278641771,-460.0,0.00019452,2]
[374351183,1753278641780,-460.0,0.00019452,2]
[374351185,1753278641790,-460.0,0.00019452,2]
[374351187,1753278641805,-269.05320935,0.00019452,2]
[374351189,1753278641815,-373.49665281,0.00019452,2]
[374351191,1753278641825,-208.48,0.00019452,2]
[374351193,1753278641835,-460.0,0.00019452,2]
[374351194,1753278641845,-460.0,0.00019452,2]
[374351196,1753278641855,-460.0,0.00019452,2]
[374351198,1753278641864,-460.0,0.00019452,2]
[374351200,1753278641876,-460.0,0.00019452,2]
[374351202,1753278641885,-460.0,0.00019452,2]
[374351204,1753278641895,-460.0,0.00019452,2]
[374351206,1753278641904,-460.0,0.00019452,2]
[374351208,1753278641913,-861.3171543,0.00019452,2]
[374351210,1753278641925,-99.7728457,0.00019452,2]
[374351212,1753278641934,-460.0,0.00019452,2]
[374351214,1753278641943,-98.26657394,0.00019452,2]
[374351216,1753278641963,-361.73342606,0.00019452,2]
[374351218,1753278641972,-2054.53,0.00019452,2]
[374351220,1753278641981,-379.26921026,0.00019452,2]
[374351222,1753278641993,-80.73078974,0.00019452,2]
[374351224,1753278642002,-542.39,0.00019452,2]
[374351226,1753278642013,-460.0,0.00019452,2]
[374351228,1753278642023,-460.0,0.00019452,2]
[374351230,1753278642034,-460.0,0.00019452,2]
[374351232,1753278642044,-460.0,0.00019452,2]
[374351234,1753278642058,-484.64,0.00019452,2]
[374351236,1753278642069,-460.0,0.00019452,2]
[374351238,1753278642079,-460.0,0.00019452,2]
[374351239,1753278642089,-460.0,0.00019452,2]
[374351241,1753278642100,-460.0,0.00019452,2]
[374351243,1753278642110,-460.0,0.00019452,2]
[374351245,1753278642120,-460.0,0.00019452,2]
[374351247,1753278642130,-95.26649492,0.00019452,2]
[374351249,1753278642142,-364.73350508,0.00019452,2]
[374351251,1753278642152,-460.0,0.00019452,2]
[374351253,1753278642163,-460.0,0.00019452,2]
[374351255,1753278642172,-460.0,0.00019452,2]
[374351257,1753278642182,-3279.89,0.00019452,2]
[374351259,1753278642192,-481.72036995,0.00019452,2]
[374351261,1753278642205,-460.0,0.00019452,2]
[374351263,1753278642215,-595.63,0.00019452,2]
[374351265,1753278642225,-460.0,0.00019452,2]
[374351267,1753278642235,-460.0,0.00019452,2]
[374351269,1753278642244,-460.0,0.00019452,2]
[374351271,1753278642253,-460.0,0.00019452,2]
[374351272,1753278642263,-708.43,0.00019452,2]
[374351274,1753278642273,-460.0,0.00019452,2]
[374351276,1753278642283,-460.0,0.00019452,2]
[374351278,1753278642292,-460.0,0.00019452,2]
[374351280,1753278642301,-460.0,0.00019452,2]
[374351282,1753278642310,-460.0,0.00019452,2]
[374351284,1753278642319,-460.0,0.00019452,2]
[374351286,1753278642331,-10302.36,0.00019452,2]
[374351288,1753278642340,-1333.69,0.00019452,2]
[374351290,1753278642349,-460.0,0.00019452,2]
[374351292,1753278642359,-553.39,0.00019452,2]
[374351294,1753278642368,-460.0,0.00019452,2]
[374351295,1753278642378,-460.0,0.00019452,2]
[374351297,1753278642387,-460.0,0.00019452,2]
[374351299,1753278642396,-460.0,0.00019452,2]
[374351301,1753278642406,-460.0,0.00019452,2]
[374351303,1753278642416,-460.0,0.00019452,2]
[374351305,1753278642426,-460.0,0.00019452,2]
[374351306,1753278642435,-478.71,0.00019452,2]
[374351307,1753278642445,-460.0,0.00019452,2]
[374351308,1753278642458,-460.0,0.00019452,2]
[374351309,1753278642468,-460.0,0.00019452,2]
[374351310,1753278642478,-460.0,0.00019452,2]
[374351311,1753278642487,-2453.51,0.00019452,2]
[374351312,1753278642497,-460.0,0.00019452,2]
[374351313,1753278642507,-2633.59,0.00019452,2]
[374351314,1753278642517,-460.0,0.00019452,2]
[374351315,1753278642527,-460.0,0.00019452,2]
[374351316,1753278642537,-536.74,0.00019452,2]
[374351317,1753278642548,-460.0,0.00019452,2]
[374351318,1753278642558,-460.0,0.00019452,2]
[374351319,1753278642568,-460.0,0.00019452,2]
[374351320,1753278642578,-2867.23,0.00019452,2]
[374351321,1753278642588,-460.0,0.00019452,2]
[374351322,1753278642598,-460.0,0.00019452,2]
[374351323,1753278642608,-1093.38,0.00019452,2]
[374351324,1753278642618,-460.0,0.00019452,2]
[374351325,1753278642628,-460.0,0.00019452,2]
[374351326,1753278642638,-828.75,0.00019452,2]
[374351327,1753278642648,-460.0,0.00019452,2]
[374351328,1753278642657,-460.0,0.00019452,2]
[374351329,1753278642669,-460.0,0.00019452,2]
[374351330,1753278642679,-460.0,0.00019452,2]
[374351331,1753278642689,-460.0,0.00019452,2]
[374351332,1753278642699,-1266.0,0.00019452,2]
[374351333,1753278642714,-392.4689368,0.00019452,2]
[374351334,1753278642725,-1689.94,0.00019452,2]
[374351335,1753278642737,-460.0,0.00019452,2]
[374351336,1753278642753,-1612.78,0.00019452,2]
[374351337,1753278642766,-1545.58,0.00019452,2]
[374351338,1753278642780,-460.0,0.00019452,2]
[374351339,1753278642791,-460.0,0.00019452,2]
[374351341,1753278642802,-561.41,0.00019452,2]
[374351343,1753278642811,-460.0,0.00019452,2]
[374351344,1753278642825,-460.0,0.00019452,2]
[374351346,1753278642835,-175.19404414,0.00019452,2]
[374351348,1753278642849,-460.0,0.00019452,2]
[374351350,1753278642861,-500.0,0.0001962,2]
[374351352,1753278642882,-279.50449457,0.00019721,2]
[374351355,1753278642900,-1000.0,0.00019721,2]
[374351357,1753278642912,-1000.0,0.00019721,2]
[374351359,1753278642923,-1000.0,0.00019721,2]
[374351361,1753278642934,-1000.0,0.00019721,2]
[374351363,1753278642947,-1000.0,0.00019721,2]
[374351365,1753278642969,-1000.0,0.00019721,2]
[374351367,1753278642986,-1000.0,0.00019721,2]
[374351369,1753278642996,-7526.64,0.00019726,2]
[374351371,1753278643006,-460.0,0.00019726,2]
[374351374,1753278643016,-460.0,0.00019726,2]
[374351376,1753278643026,-460.0,0.00019726,2]
[374351378,1753278643035,-460.0,0.00019726,2]
[374351381,1753278643046,-1926.88,0.00019726,2]
[374351384,1753278643055,-460.0,0.00019726,2]
[374351387,1753278643065,-460.0,0.00019726,2]
[374351389,1753278643074,-460.0,0.00019726,2]
[374351392,1753278643084,-1268.06,0.00019726,2]
[374351395,1753278643094,-460.0,0.00019726,2]
[374351398,1753278643103,-460.0,0.00019726,2]
[374351401,1753278643113,-460.0,0.00019726,2]
[374351404,1753278643124,-460.0,0.00019726,2]
[374351407,1753278643133,-460.0,0.00019726,2]
[374351410,1753278643144,-621.61,0.00019726,2]
[374351413,1753278643154,-460.0,0.00019726,2]
[374351416,1753278643164,-460.0,0.00019726,2]
[374351419,1753278643174,-460.0,0.00019726,2]
[374351421,1753278643183,-480.34,0.00019726,2]
[374351424,1753278643194,-460.0,0.00019726,2]
[374351427,1753278643207,-460.0,0.00019726,2]
[374351431,1753278643216,-460.0,0.00019726,2]
[374351435,1753278643227,-460.0,0.00019726,2]
[374351438,1753278643238,-460.0,0.00019726,2]
[374351441,1753278643248,-460.0,0.00019726,2]
[374351444,1753278643258,-460.0,0.00019726,2]
[374351448,1753278643268,-460.0,0.00019726,2]
[374351451,1753278643278,-460.0,0.00019726,2]
[374351454,1753278643288,-460.0,0.00019726,2]
[374351457,1753278643298,-549.96,0.00019726,2]
[374351460,1753278643308,-460.0,0.00019726,2]
[374351463,1753278643319,-460.0,0.00019726,2]
[374351466,1753278643328,-328.56106037,0.00019726,2]
[374351469,1753278643339,-287.3640022,0.00019726,2]
[374351473,1753278643348,-460.0,0.00019726,2]
[374351477,1753278643358,-460.0,0.00019726,2]
[374351481,1753278643367,-460.0,0.00019726,2]
[374351484,1753278643377,-460.0,0.00019726,2]
[374351487,1753278643386,-460.0,0.00019726,2]
[374351490,1753278643395,-460.0,0.00019726,2]
[374351493,1753278643405,-580.38,0.00019726,2]
[374351496,1753278643415,-460.0,0.00019726,2]
[374351499,1753278643425,-534.43300934,0.00019726,2]
[374351502,1753278643434,-460.0,0.00019726,2]
[374351504,1753278643444,-460.0,0.00019726,2]
[374351507,1753278643457,-460.0,0.00019726,2]
[374351510,1753278643467,-460.0,0.00019726,2]
[374351513,1753278643478,-460.0,0.00019726,2]
[374351516,1753278643488,-460.0,0.00019726,2]
[374351519,1753278643497,-460.0,0.00019726,2]
[374351522,1753278643507,-460.0,0.00019726,2]
[374351525,1753278643517,-460.0,0.00019726,2]
[374351528,1753278643526,-460.0,0.00019726,2]
[374351531,1753278643534,-460.0,0.00019726,2]
[374351533,1753278643544,-460.0,0.00019726,2]
[374351536,1753278643554,-460.0,0.00019726,2]
[374351540,1753278643564,-460.0,0.00019726,2]
[374351544,1753278643574,-460.0,0.00019726,2]
[374351547,1753278643584,-961.09,0.00019726,2]
[374351550,1753278643594,-460.0,0.00019726,2]
[374351553,1753278643603,-460.0,0.00019726,2]
[374351556,1753278643613,-2054.53,0.00019726,2]
[374351559,1753278643623,-561.09862588,0.00019726,2]
[374351562,1753278643633,-460.0,0.00019726,2]
[374351565,1753278643642,-460.0,0.00019726,2]
[374351568,1753278643652,-542.39,0.00019726,2]
[374351569,1753278643661,-460.0,0.00019726,2]
[374351571,1753278643672,-460.0,0.00019726,2]
[374351574,1753278643682,-484.64,0.00019726,2]
[374351577,1753278643691,-460.0,0.00019726,2]
[374351580,1753278643701,-460.0,0.00019726,2]
[374351583,1753278643717,-460.0,0.00019726,2]
[374351586,1753278643727,-460.0,0.00019726,2]
[374351589,1753278643738,-460.0,0.00019726,2]
[374351592,1753278643748,-460.0,0.00019726,2]
[374351595,1753278643757,-460.0,0.00019726,2]
[374351598,1753278643767,-460.0,0.00019726,2]
[374351601,1753278643777,-460.0,0.00019726,2]
[374351604,1753278643786,-460.0,0.00019726,2]
[374351607,1753278643796,-3279.89,0.00019726,2]
[374351610,1753278643806,-460.0,0.00019726,2]
[374351613,1753278643817,-595.63,0.00019726,2]
[374351616,1753278643828,-460.0,0.00019726,2]
[374351619,1753278643840,-460.0,0.00019726,2]
[374351622,1753278643850,-460.0,0.00019726,2]
[374351625,1753278643859,-104.9610005,0.00019726,2]
[374351630,1753278643882,-355.0389995,0.00019726,2]
[374351632,1753278643892,-708.43,0.00019726,2]
[374351634,1753278643902,-564.6643063,0.00019726,2]
[374351636,1753278643912,-460.0,0.00019726,2]
[374351638,1753278643922,-460.0,0.00019726,2]
[374351640,1753278643932,-460.0,0.00019726,2]
[374351642,1753278643942,-237.26668909,0.00019726,2]
[374351644,1753278643951,-10302.36,0.00019726,2]
[374351646,1753278643969,-1333.69,0.00019726,2]
[374351648,1753278643979,-553.39,0.00019726,2]
[374351650,1753278643989,-460.0,0.00019726,2]
[374351652,1753278643999,-460.0,0.00019726,2]
[374351654,1753278644009,-460.0,0.00019726,2]
[374351656,1753278644020,-460.0,0.00019726,2]
[374351658,1753278644030,-460.0,0.00019726,2]
[374351660,1753278644039,-460.0,0.00019726,2]
[374351662,1753278644049,-478.71,0.00019726,2]
[374351664,1753278644058,-460.0,0.00019726,2]
[374351666,1753278644068,-460.0,0.00019726,2]
[374351670,1753278644078,-460.0,0.00019726,2]
[374351673,1753278644088,-460.0,0.00019726,2]
[374351676,1753278644098,-2453.51,0.00019726,2]
[374351678,1753278644107,-460.0,0.00019726,2]
[374351681,1753278644117,-2633.59,0.00019726,2]
[374351684,1753278644128,-182.90484529,0.00019726,2]
[374351687,1753278644138,-460.0,0.00019726,2]
[374351691,1753278644147,-536.74,0.00019726,2]
[374351695,1753278644156,-460.0,0.00019726,2]
[374351698,1753278644166,-460.0,0.00019726,2]
[374351700,1753278644175,-460.0,0.00019726,2]
[374351703,1753278644187,-2867.23,0.00019726,2]
[374351705,1753278644196,-192.9131683,0.00019726,2]
[374351707,1753278644211,-460.0,0.00019726,2]
[374351709,1753278644220,-1093.38,0.00019726,2]
[374351711,1753278644230,-460.0,0.00019726,2]
[374351713,1753278644239,-460.0,0.00019726,2]
[374351715,1753278644249,-828.75,0.00019726,2]
[374351717,1753278644258,-460.0,0.00019726,2]
[374351719,1753278644268,-460.0,0.00019726,2]
[374351721,1753278644278,-460.0,0.00019726,2]
[374351723,1753278644287,-460.0,0.00019726,2]
[374351725,1753278644296,-1266.0,0.00019726,2]
[374351727,1753278644306,-1689.94,0.00019726,2]
[374351729,1753278644316,-460.0,0.00019726,2]
[374351731,1753278644326,-1612.78,0.00019726,2]
[374351733,1753278644336,-1545.58,0.00019726,2]
[374351735,1753278644346,-460.0,0.00019726,2]
[374351737,1753278644355,-460.0,0.00019726,2]
[374351740,1753278644365,-561.41,0.00019726,2]
[374351742,1753278644374,-460.0,0.00019726,2]
[374351744,1753278644384,-460.0,0.00019726,2]
[374351746,1753278644393,-460.0,0.00019726,2]
[374351748,1753278644403,-151.0,0.000198,2]
[374351750,1753278644412,-7526.64,0.0002,2]
[374351752,1753278644422,-460.0,0.0002,2]
[374351754,1753278644432,-460.0,0.0002,2]
[374351756,1753278644441,-460.0,0.0002,2]
[374351758,1753278644450,-460.0,0.0002,2]
[374351761,1753278644468,-460.0,0.0002,2]
[374351762,1753278644478,-1926.88,0.0002,2]
[374351764,1753278644487,-460.0,0.0002,2]
[374351766,1753278644497,-460.0,0.0002,2]
[374351769,1753278644506,-1268.06,0.0002,2]
[374351771,1753278644515,-460.0,0.0002,2]
[374351773,1753278644524,-178.08,0.0002,2]
[374351775,1753278644533,-621.61,0.0002,2]
[374351777,1753278644542,-291.7981558,0.0002,2]
[374351779,1753278644552,-460.0,0.0002,2]
[374351781,1753278644561,-460.0,0.0002,2]
[374351783,1753278644570,-480.34,0.0002,2]
[374351785,1753278644580,-460.0,0.0002,2]
[374351787,1753278644589,-460.0,0.0002,2]
[374351789,1753278644598,-460.0,0.0002,2]
[374351791,1753278644607,-460.0,0.0002,2]
[374351793,1753278644617,-460.0,0.0002,2]
[374351795,1753278644626,-460.0,0.0002,2]
[374351797,1753278644636,-460.0,0.0002,2]
[374351799,1753278644646,-460.0,0.0002,2]
[374351800,1753278644656,-460.0,0.0002,2]
[374351803,1753278644666,-460.0,0.0002,2]
[374351804,1753278644676,-549.96,0.0002,2]
[374351807,1753278644686,-460.0,0.0002,2]
[374351809,1753278644697,-460.0,0.0002,2]
[374351811,1753278644714,-460.0,0.0002,2]
[374351813,1753278644724,-464.86382537,0.0002,2]
[374351815,1753278644734,-460.0,0.0002,2]
[374351817,1753278644744,-494.89,0.0002,2]
[374351819,1753278644754,-460.0,0.0002,2]
[374351821,1753278644764,-580.38,0.0002,2]
[374351823,1753278644773,-460.0,0.0002,2]
[374351825,1753278644783,-460.0,0.0002,2]
[374351827,1753278644793,-460.0,0.0002,2]
[374351829,1753278644803,-460.0,0.0002,2]
[374351831,1753278644814,-472.11330384,0.0002,2]
[374351833,1753278644830,-460.0,0.0002,2]
[374351835,1753278644844,-460.0,0.0002,2]
[374351837,1753278644855,-460.0,0.0002,2]
[374351839,1753278644865,-460.0,0.0002,2]
[374351841,1753278644875,-496.96,0.0002,2]
[374351843,1753278644885,-460.0,0.0002,2]
[374351856,1753278645018,-460.0,0.0002,2]
[374351858,1753278645028,-460.0,0.0002,2]
[374351860,1753278645038,-460.0,0.0002,2]
[374351862,1753278645048,-961.09,0.0002,2]
[374351864,1753278645058,-460.0,0.0002,2]
[374351866,1753278645068,-2054.53,0.0002,2]
[374351868,1753278645078,-460.0,0.0002,2]
[374351870,1753278645088,-460.0,0.0002,2]
[374351872,1753278645098,-542.39,0.0002,2]
[374351874,1753278645108,-460.0,0.0002,2]
[374351877,1753278645117,-460.0,0.0002,2]
[374351878,1753278645127,-484.64,0.0002,2]
[374351880,1753278645137,-460.0,0.0002,2]
[374351882,1753278645148,-200.45,0.0002,2]
[374351884,1753278645158,-460.0,0.0002,2]
[374351886,1753278645168,-596.71647768,0.0002,2]
[374351888,1753278645179,-460.0,0.0002,2]
[374351890,1753278645188,-460.0,0.0002,2]
[374351892,1753278645198,-460.0,0.0002,2]
[374351894,1753278645214,-460.0,0.0002,2]
[374351896,1753278645225,-460.0,0.0002,2]
[374351898,1753278645235,-3279.89,0.0002,2]
[374351900,1753278645246,-460.0,0.0002,2]
[374351902,1753278645255,-595.63,0.0002,2]
[374351904,1753278645265,-460.0,0.0002,2]
[374351906,1753278645275,-708.43,0.0002,2]
[374351907,1753278645286,-460.0,0.0002,2]
[374351908,1753278645295,-460.0,0.0002,2]
[374351909,1753278645306,-460.0,0.0002,2]
[374351910,1753278645315,-10302.36,0.0002,2]
[374351911,1753278645325,-1333.69,0.0002,2]
[374351912,1753278645335,-553.39,0.0002,2]
[374351913,1753278645345,-460.0,0.0002,2]
[374351915,1753278645354,-460.0,0.0002,2]
[374351917,1753278645363,-460.0,0.0002,2]
[374351919,1753278645372,-484.49,0.0002,2]
[374351920,1753278645381,-460.0,0.0002,2]
[374351922,1753278645391,-478.71,0.0002,2]
[374351925,1753278645400,-460.0,0.0002,2]
[374351926,1753278645409,-460.0,0.0002,2]
[374351928,1753278645418,-460.0,0.0002,2]
[374351930,1753278645428,-460.0,0.0002,2]
[374351932,1753278645437,-2453.51,0.0002,2]
[374351934,1753278645447,-460.0,0.0002,2]
[374351936,1753278645460,-2633.59,0.0002,2]
[374351938,1753278645470,-460.0,0.0002,2]
[374351940,1753278645479,-536.74,0.0002,2]
[374351943,1753278645489,-460.0,0.0002,2]
[374351945,1753278645499,-460.0,0.0002,2]
[374351946,1753278645509,-460.0,0.0002,2]
[374351949,1753278645519,-2867.23,0.0002,2]
[374351951,1753278645528,-460.0,0.0002,2]
[374351952,1753278645538,-460.0,0.0002,2]
[374351954,1753278645548,-1093.38,0.0002,2]
[374351956,1753278645557,-460.0,0.0002,2]
[374351958,1753278645567,-828.75,0.0002,2]
[374351960,1753278645576,-460.0,0.0002,2]
[374351962,1753278645586,-460.0,0.0002,2]
[374351964,1753278645595,-460.0,0.0002,2]
[374351966,1753278645605,-1266.0,0.0002,2]
[374351968,1753278645615,-1689.94,0.0002,2]
[374351970,1753278645624,-460.0,0.0002,2]
[374351972,1753278645634,-1612.78,0.0002,2]
[374351974,1753278645643,-1545.58,0.0002,2]
[374351976,1753278645653,-460.0,0.0002,2]
[374351978,1753278645662,-460.0,0.0002,2]
[374351980,1753278645671,-561.41,0.0002,2]
[374351982,1753278645681,-430.27128955,0.0002,2]
[374351985,1753278645691,-435.82348656,0.0002,2]
[374351986,1753278645700,-224.44983537,0.0002,2]
[374351988,1753278645715,-1330.376908,0.00020124,2]
[374351990,1753278645724,-450.622371,0.00020187,2]
[374351992,1753278645734,-151.0,0.000202,4]
[374351994,1753278645743,-1500.0,0.00020268,2]
[374351996,1753278645752,-1500.0,0.00020268,2]
[374351998,1753278645762,-500.0,0.00020268,2]
[374352000,1753278645771,-1500.0,0.00020268,2]
[374352002,1753278645780,-1595.20899026,0.00020268,2]
[374352004,1753278645789,-1500.0,0.00020268,2]
[374352006,1753278645799,-1500.0,0.00020268,2]
[374352008,1753278645808,-7526.64,0.00020273,2]
[374352010,1753278645819,-460.0,0.00020273,2]
[374352012,1753278645829,-460.0,0.00020273,2]
[374352014,1753278645839,-460.0,0.00020273,2]
[374352016,1753278645851,-314.64906921,0.00020273,2]
[374352018,1753278645860,-1926.88,0.00020273,2]
[374352020,1753278645870,-460.0,0.00020273,2]
[374352022,1753278645880,-460.0,0.00020273,2]
[374352024,1753278645889,-1268.06,0.00020273,2]
[374352026,1753278645899,-621.61,0.00020273,2]
[374352028,1753278645909,-460.0,0.00020273,2]
[374352030,1753278645919,-460.0,0.00020273,2]
[374352032,1753278645928,-480.34,0.00020273,2]
[374352034,1753278645937,-460.0,0.00020273,2]
[374352036,1753278645947,-460.0,0.00020273,2]
[374352038,1753278645960,-460.0,0.00020273,2]
[374352040,1753278645969,-460.0,0.00020273,2]
[374352042,1753278645978,-460.0,0.00020273,2]
[374352043,1753278645987,-366.07535684,0.00020273,2]
[374352046,1753278645997,-460.0,0.00020273,2]
[374352048,1753278646007,-460.0,0.00020273,2]
[374352050,1753278646016,-460.0,0.00020273,2]
[374352052,1753278646026,-549.96,0.00020273,2]
[374352054,1753278646036,-460.0,0.00020273,2]
[374352056,1753278646045,-460.0,0.00020273,2]
[374352058,1753278646054,-460.0,0.00020273,2]
[374352060,1753278646063,-460.0,0.00020273,2]
[374352062,1753278646073,-460.0,0.00020273,2]
[374352064,1753278646082,-580.38,0.00020273,2]
[374352065,1753278646091,-309.08,0.00020273,2]
[374352068,1753278646101,-460.0,0.00020273,2]